Cogmind - Beta 12 @@@ ROGUE MODE // 2023.05.03 @ 16:22:48 Player: Exp. Geonium Core Result: Self-destructed Performance ------------- Evolutions (0) 0 Regions Visited (4) 800 Robots Destroyed (13) 65 Value Destroyed (246) 246 Prototype IDs (23) 460 Alien Tech Used (0) 0 Bonus (0) 0 TOTAL SCORE: 1571 Bonus ------- None Cogmind --------- Core Integrity 242/250 Matter 294/300 Energy 250/250 System Corruption 0% Temperature Cool (0) Movement Walking (260) Ox2 Location -9/Mines Parts ------- > --- POWER (1) -------- Ion Engine > --- PROPULSION (2) --- Aluminum Leg Aluminum Leg > --- UTILITY (2) ------ High-capacity Storage Unit Tractor Beam > --- WEAPON (2) ------- Rocket Launcher Rocket Launcher > --- INVENTORY (20) --- Light Ion Engine Light Treads Light Treads Light Treads Compact Wheel Small Storage Unit Large Storage Unit Hacking Suite Firepult Rocket Launcher Rocket Launcher Rocket Launcher Rocket Launcher Peak State ------------ > --- POWER ------------ Ion Engine > --- PROPULSION ------- Aluminum Leg Aluminum Leg > --- UTILITY ---------- Large Storage Unit Tractor Beam > --- WEAPON ----------- Rocket Launcher Rocket Launcher > --- INVENTORY -------- Light Ion Engine Light Treads Light Treads Light Treads Compact Wheel Small Storage Unit Hacking Suite Firepult Rocket Launcher Rocket Launcher Rocket Launcher Rocket Launcher [Rating: 12] Favorites ----------- Power Ion Engine Engine Ion Engine Propulsion Aluminum Leg Leg Aluminum Leg Utility Tractor Beam Device Tractor Beam Storage Large Storage Unit Weapon Rocket Launcher Energy Gun Medium Laser Ballistic Gun Light Assault Rifle Launcher Rocket Launcher Build | -11 -10 -10 -10 -9 ------- Run | Jun Mat Min Exi Min Slots Evolved . | . . . . . Power . | . . . . . Propulsion . | . . . . . Utility . | . . . . . Weapon . | . . . . . Parts Attached 5 | . 4 . 1 . Power . | . . . . . Engine . | . . . . . Core . | . . . . . Reactor . | . . . . . Propulsion . | . . . . . Treads . | . . . . . Leg . | . . . . . Wheel . | . . . . . Hover . | . . . . . Flight . | . . . . . Utility 3 | . 2 . 1 . Device 1 | . 1 . . . Storage 2 | . 1 . 1 . Processor . | . . . . . Hackware . | . . . . . Protection . | . . . . . Artifact . | . . . . . Weapon 2 | . 2 . . . Energy Gun . | . . . . . Energy Cannon . | . . . . . Ballistic Gun . | . . . . . Ballistic Cannon . | . . . . . Launcher 2 | . 2 . . . Special Weapon . | . . . . . Impact Weapon . | . . . . . Slashing Weapon . | . . . . . Piercing Weapon . | . . . . . Special Melee Weapon . | . . . . . Unidentified Prototypes . | . . . . . Parts Lost . | . . . . . Power . | . . . . . Propulsion . | . . . . . Utility . | . . . . . Weapon . | . . . . . Highest Loss Streak . | . . . . . To Critical Strikes . | . . . . . Average Slot Usage (%) 99 | . 95 100 100 100 Engine 14 | . 14 14 14 14 Leg 28 | . 28 28 28 28 Device 13 | . 10 14 14 14 Storage 14 | . 14 14 14 14 Launcher 27 | . 25 28 28 28 Naked Turns . | . . . . . Heaviest Build 54 | 13 34 34 54 54 Greatest Support 20 | 20 20 20 20 20 Greatest Overweight (x) 2 | . 1 1 2 2 Average Overweight (x) . | . . 1 1 2 Largest Inventory Capacity 20 | . 15 15 20 20 Average Capacity 15 | . 12 15 15 20 Most Carried 14 | . 11 11 14 14 Average Carried 11 | . 8 11 12 14 Final Capacity 20 | 8 15 15 20 20 Final Carried 14 | 6 11 11 14 14 Class Distribution -------------------- 89% | Mutant 10% | Commander-Mutant Dominant Class ---------------- Mutant | -10/Materials Mutant | -10/Mines Mutant | -10/Exiles Commander-Mutant | -9/Mines Resources | -11 -10 -10 -10 -9 ----------- Run | Jun Mat Min Exi Min Matter Collected 449 | 200 200 49 . . Remotely 215 | . 200 15 . . Salvage Created 446 | . 446 . . . Parts 22 | . 22 . . . Haulers Intercepted 2 | . 2 . . . Recyclers Shooed 1 | . 1 . . . Parts Field Recycled . | . . . . . Retrieved Matter . | . . . . . Parts Self-Destructed . | . . . . . Prevented . | . . . . . Kills | -11 -10 -10 -10 -9 ------- Run | Jun Mat Min Exi Min Combat Hostiles Destroyed 2 | . 2 . . . AOE 2 | . 2 . . . Classes Destroyed 5 | . 5 . . . Hauler 2 | . 2 . . . Recycler 5 | . 5 . . . Operator 2 | . 2 . . . Watcher 2 | . 2 . . . Grunt 2 | . 2 . . . Best Kill Streak 6 | . 6 . . . Combat Bots Only 1 | . 1 . . . Max Kills in Single Turn 2 | . 2 . . . Gunslinging . | . . . . . Exploded 1 | . 1 . . . Melee . | . . . . . Uniques/NPCs Destroyed . | . . . . . Combat | -11 -10 -10 -10 -9 -------- Run | Jun Mat Min Exi Min Damage Taken 85 | . 85 . . . Core 8 | . 8 . . . Absorbed by Shields . | . . . . . Core Remaining (%) 100 | 100 . . . . Volleys Fired 19 | . 19 . . . Largest 1 | . 1 . . . Hottest 33 | . 33 . . . Shots Fired 19 | . 19 . . . Gun . | . . . . . Cannon . | . . . . . Launcher 19 | . 19 . . . Special . | . . . . . Kinetic . | . . . . . Thermal . | . . . . . Explosive 19 | . 19 . . . Electromagnetic . | . . . . . Robot Hit Streak 2 | . 2 . . . Robot Miss Streak 3 | . 3 . . . Penetration Max . | . . . . . Secondary Targets . | . . . . . Shots Hit Robots 4 | . 4 . . . Core Hits 20 | . 19 . 1 . Critical Kills . | . . . . . Critical Parts Destroyed . | . . . . . Critical Strikes . | . . . . . Melee Attacks . | . . . . . Impact . | . . . . . Slashing . | . . . . . Piercing . | . . . . . Sneak Attacks . | . . . . . Combat Hostiles . | . . . . . Follow-up Attacks . | . . . . . Damage Inflicted 890 | . 883 . 5 2 Guns . | . . . . . Cannons . | . . . . . Explosions 883 | . 883 . . . Melee . | . . . . . Ramming 7 | . . . 5 2 Kinetic . | . . . . . Thermal . | . . . . . Explosive 883 | . 883 . . . Electromagnetic . | . . . . . Impact . | . . . . . Slashing . | . . . . . Piercing . | . . . . . Highest Corruption . | . . . . . Average Corruption . | . . . . . Corruption Purged . | . . . . . Corruption Blocked . | . . . . . Overload Shots . | . . . . . Overflow Damage 30 | . 30 . . . Projectiles . | . . . . . Explosions 30 | . 30 . . . Melee . | . . . . . Knockbacks . | . . . . . Impact . | . . . . . Kinetic . | . . . . . Secondary . | . . . . . Self-Inflicted Damage 64 | . 64 . . . Shots 3 | . 3 . . . Rammed . | . . . . . Targets Rammed 4 | . . . 3 1 Kicked 4 | . . . 3 1 Crushed . | . . . . . Highest Temperature 2 | . 2 . . . Average Temperature 2 | . 2 . . . Received Heat Transfer 12 | . 12 . . . Siege Activations . | . . . . . Robots Corrupted . | . . . . . Combat Hostiles . | . . . . . Parts Fried . | . . . . . Impact Corruptions . | . . . . . Robots Melted . | . . . . . Combat Hostiles . | . . . . . Parts Melted . | . . . . . Heat Transferred . | . . . . . Parts Sabotaged . | . . . . . Parts Stolen . | . . . . . Parts Stripped . | . . . . . Power Chain Reactions . | . . . . . Missiles Intercepted . | . . . . . Alert | -11 -10 -10 -10 -9 ------- Run | Jun Mat Min Exi Min Peak Influence 381 | . 381 148 . . Initial 148 | . . 148 . . Average 146 | . 190 148 . . Maximum Alert Level 1 | . 1 . . . Low Security (%) 76 | . 50 100 . 100 Level 1 23 | . 50 . . . Level 2 . | . . . . . Level 3 . | . . . . . Level 4 . | . . . . . Level 5 . | . . . . . High Security . | . . . . . Max Security . | . . . . . Squads Dispatched 1 | . 1 . . . Investigation . | . . . . . Extermination . | . . . . . Reinforcement 1 | . 1 . . . Assault . | . . . . . Garrison . | . . . . . Intercept . | . . . . . Searches Triggered . | . . . . . Construction Impeded . | . . . . . Haulers Reinforced . | . . . . . Active Scanning Responses . | . . . . . Cargo Convoy Interrupts . | . . . . . Stealth | -11 -10 -10 -10 -9 --------- Run | Jun Mat Min Exi Min Distress Signals . | . . . . . Communications Jammed . | . . . . . Distress Signals . | . . . . . Times Spotted 5 | . 5 . . . Peak Tracking Total 1 | . 1 . . . Tactical Retreats . | . . . . . Traps | -11 -10 -10 -10 -9 ------- Run | Jun Mat Min Exi Min Traps Triggered . | . . . . . Indirectly . | . . . . . Trap Hack Attempts . | . . . . . Triggered . | . . . . . Disarmed . | . . . . . Reprogrammed . | . . . . . Reused . | . . . . . Traps Extracted . | . . . . . Installed . | . . . . . Triggered . | . . . . . Machines | -11 -10 -10 -10 -9 ---------- Run | Jun Mat Min Exi Min Machines Disabled 8 | . 8 . . . Max in Single Turn 2 | . 2 . . . Machines Repaired . | . . . . . Machines Sabotaged . | . . . . . Overloaded Fab Kills . | . . . . . Hacking | -11 -10 -10 -10 -9 --------- Run | Jun Mat Min Exi Min Machines Accessed 1 | . . . 1 . Terminals . | . . . . . Fabricators . | . . . . . Repair Stations . | . . . . . Recycling Units . | . . . . . Scanalyzers . | . . . . . Garrison Access . | . . . . . Total Hacks 1 | . . . 1 . Successful 1 | . . . 1 . Failed . | . . . . . Catastrophic . | . . . . . Database Lockouts . | . . . . . Manual 1 | . . . 1 . Terminals . | . . . . . Fabricators . | . . . . . Repair Stations . | . . . . . Recycling Units . | . . . . . Scanalyzers . | . . . . . Garrison Access . | . . . . . Terminal Hacks 1 | . . . 1 . EX-Prototype ID Bank 1 | . . . 1 . Fabricator Hacks . | . . . . . Repair Station Hacks . | . . . . . Recycling Unit Hacks . | . . . . . Scanalyzer . | . . . . . Garrison Access Hacks . | . . . . . Unauthorized Hacks . | . . . . . Terminals . | . . . . . Fabricators . | . . . . . Repair Stations . | . . . . . Recycling Units . | . . . . . Scanalyzers . | . . . . . Garrison Access . | . . . . . Data Cores Recovered . | . . . . . Used . | . . . . . Hacking Detections . | . . . . . Full Trace Events . | . . . . . Feedback Events . | . . . . . Feedback Blocked . | . . . . . Robot Schematics Acquired . | . . . . . Robots Built . | . . . . . Authchips . | . . . . . Time . | . . . . . Total Robot Build Rating . | . . . . . Part Schematics Acquired . | . . . . . Parts Built . | . . . . . Authchips . | . . . . . Time . | . . . . . Total Part Build Rating . | . . . . . Parts Repaired . | . . . . . Time . | . . . . . Parts Recycled . | . . . . . Recycled Matter . | . . . . . Retrieved Matter . | . . . . . Retrieved Components . | . . . . . Parts Scanalyzed . | . . . . . Part Schematics Acquired . | . . . . . Parts Damaged . | . . . . . Bothacking | -11 -10 -10 -10 -9 ------------ Run | Jun Mat Min Exi Min Used RIF Installer . | . . . . . Robots Hacked . | . . . . . Non-combat . | . . . . . Combat . | . . . . . Robot Hacks Applied . | . . . . . Relay Couplers Released . | . . . . . Fabnet Peak Effective % . | . . . . . Robots Rewired 4 | . . . 4 . Allies Hacked . | . . . . . Hacks Repelled . | . . . . . Allies | -11 -10 -10 -10 -9 -------- Run | Jun Mat Min Exi Min Total Allies 6 | . . 2 4 . Largest Group 4 | . . 2 4 4 Highest-Rated Group 45 | . . 41 45 45 Highest-Rated Ally 31 | . . 31 31 21 Total Orders . | . . . . . Ally Attacks . | . . . . . Total Damage . | . . . . . Kills . | . . . . . Allies Corrupted . | . . . . . Allies Melted . | . . . . . Intel | -11 -10 -10 -10 -9 ------- Run | Jun Mat Min Exi Min Robot Analysis Total . | . . . . . Derelict Logs Recovered 2 | . . 2 . . Drone Launches . | . . . . . Drone Recoveries . | . . . . . Exploration | -11 -10 -10 -10 -9 ------------- Run | Jun Mat Min Exi Min Turns Passed 1513 | . 350 297 756 110 Spaces Moved 735 | 1 193 157 343 41 Core . | . . . . . Treads . | . . . . . Legs 735 | 1 193 157 343 41 Wheels . | . . . . . Hover . | . . . . . Flight . | . . . . . Fastest Speed 120 | 120 120 190 190 260 Average Speed 187 | 120 154 190 197 260 Slowest Speed 260 | 120 190 190 260 260 Overloaded Moves . | . . . . . Propulsion Burnouts . | . . . . . Robots Hopped . | . . . . . Cave-ins Triggered . | . . . . . Exploration Rate (%) 36 | 2 40 53 70 18 Regions Visited 4 Branch Regions 3 Pre-discovered Areas 1 | . . 1 . . Known Exits Taken . | . . . . . Unknown Exits Taken 4 | 1 1 1 1 . Scrap Searched 1 | . . 1 . . Spaces Dug . | . . . . . Terrain Destroyed 117 | . 117 . . . Melee . | . . . . . Projectile . | . . . . . AOE 117 | . 117 . . . Terrain Rammed . | . . . . . Walls Destroyed . | . . . . . Machines Disabled . | . . . . . Actions | -11 -10 -10 -10 -9 --------- Run | Jun Mat Min Exi Min Total 847 | . 228 156 421 42 Wait . | . . . . . Move 731 | . 192 156 342 41 Hop . | . . . . . Pick Up 9 | . 8 . 1 . Fast Attach 2 | . 2 . . . Attach 1 | . 1 . . . Detach . | . . . . . Swap 2 | . 1 . 1 . Drop 5 | . 5 . . . Fire 19 | . 19 . . . Melee . | . . . . . Ram . | . . . . . Kick 4 | . . . 3 1 Crush . | . . . . . Escape Stasis . | . . . . . Rewire 74 | . . . 74 . Trap . | . . . . . Miscellaneous . | . . . . . Route ------- -11/Junkyard -10/Materials -10/Mines (discovered 2 exits: [*Mat] / *Exi) -10/Exiles (discovered 2 exits: [*Min x2]) -9/Mines History --------- Turn | Location | Event 1 | -11/Junkyard | Discovered new exit (range 0) 1 | -11/Junkyard | Entered Materials 251 | -10/Materials | Discovered new exit (range 13) 317 | -10/Materials | Build established: Mutant 351 | -10/Materials | Entered Mines 359 | -10/Mines | Learned 2 Materials zone layouts 597 | -10/Mines | Discovered new exit (range 5) 640 | -10/Mines | Deemed a non-threat by the Exiles lab entrance 640 | -10/Mines | Discovered new exit (range 5) 648 | -10/Mines | Entered Exiles 648 | -10/Exiles | Found Exiles lab destroyed 648 | -10/Exiles | Accompanied by 2 allies 677 | -10/Exiles | Discovered new exit (range 15) 678 | -10/Exiles | Led the pair of lost Derelicts to a safe place 976 | -10/Exiles | Opened EX-Vault 1032 | -10/Exiles | Found Firepult 1383 | -10/Exiles | Discovered new exit (range 10) 1404 | -10/Exiles | Entered Mines 1404 | -9/Mines | Accompanied by 4 allies 1407 | -9/Mines | Met a Derelict bent on vengeance 1514 | -9/Mines | Self-destructed Last Messages --------------- 01149_ Attempting to rewire G-34 Mercenary. 01151_ G-34 Mercenary rewired. 01351_ Attempting to rewire G-34 Mercenary. 01367_ G-34 Mercenary rewired. 01383_ EXIT=FOUND LOCATION=UNKNOWN GOAL=ESCAPE 01405_ A derelict wanders into view. 01428_ An audio recording is triggered: "If you're looking for Megawrench, sorry but we're not in our cave right now, after essentially being evicted by all these Unaware tunnelers." 01431_ "Blame H1-IDC, who apparently didn't care about the consequences of repeatedly making a mess in Materials. Shooting at robots and generally destroying stuff raised the alert level high enough to trigger assault squads over in the main complex, and they later decided the best way to defend their interests would be to start expanding in this direction." 01482_ Kicked R-06 Scavenger. 01512_ A derelict emerges from the shadows. 01514_ X9-5GB(g): "Some of my friends down here think you need a mining laser when you travel the depths." Map ----- +----------------------------------------------------+ | | | | | | | | | | | ?????????????????????????????? | | ?????????????????????????????? | | ?????????????????????????????? | | ?????????????????????????????? | | ?????????????????????????????? | | ?????????????????????????????? | | ?????????????????????????????? | | ?????????????????????????????? | | ?????????????????????????????? | | ?????????????????????????????? | | ?????????????????????????????? | | ?????????????????????????????? | | ???????????????????????##????? | | ??????????????????????? ##??? | | ???????????????????????? #??? | | ????????????????????????g ??? | | ???????????????????????? ??? | | ???????????????????????? #??? | | ????????????????????????# #??? | | ????????????????????????#g#??? | | ????????????????????????#@#??? | | ????????????????????????# #??? | | ???????????###??????????# #??? | | ???#??????## #?????????#g#??? | | ???# ??## ?????????#h#??? | | ??# ## #????????#g#??? | | ???? ##??????# #??? | | ?????? ##?????# #??? | | ???????????# ####### #??? | | ????????????# #??? | | ????????????### #######??? | | ??????????????## #????????? | | ???????????????## ##????????? | | ????????????????## #?????????? | | ?????????????????# #?????????? | | ?????????????????# #?????????? | | ?????????????????# #?????????? | | ?????????????????# #?????????? | | ?????????????????# #?????????? | | ?????????????##### #?????????? | | ????????????## ## ##????????? | | ??????####### ##???????? | | ???? #???????? | | ???????## ## #???????? | | ???????????# ##???????? | +----------------------------------------------------+ Best States ------------- Heat Dissipation 25 Energy Generation 10 Energy Capacity 250 Matter Stores 300 Matter Capacity 300 Sight Range 16 Terrain Scan Density 10 Evasion (%) 55 Item Schematics ----------------- None Robot Schematics ------------------ None Fabricated ------------ Nothing Alien Tech Used ----------------- None Achievements -------------- None Challenges ------------ None Game ------ Seed FrostVariableCalibrator Manual? 0 Play Time 00:06:10 Cumulative 438.6 hours Start 2023.05.03 @ 13:58:39 End 2023.05.03 @ 16:22:48 Sessions 3 Manual Loads 0 Difficulty Rogue Special Mode None Game No. 481 Rogue 481 Adventurer 0 Explorer 0 Win Type - Total 12 Types 8/0/3/1/0/0/0/0/0 Lore% 82 Gallery% 90 Achievement% 80 Wizard Run 0 Options --------- ASCII 0 Keyboard 0 Movement Mouse Keybinds 0 Fullscreen 1 Font 18/Terminus Map View 76x50 Tactical HUD 1 Map Filters NONE Filters NONE Steam 1 RUN: 3721ed4b-c494-4b4d-b96f-f001c3eb2843